[Event "50th Ciudad Sevilla 2024"]
[Site "Sevilla"]
[Date "2025.01.14"]
[Round "5.6"]
[White "Li, Di"]
[Black "Campora, Daniel H."]
[Result "1/2-1/2"]
[Annotator "RC"]
[ECO "A07"]
[WhiteElo "2544"]
[BlackElo "2353"]
[PlyCount "139"]
[EventDate "2025.01.10"]
[EventType "swiss"]
[EventCountry "ESP"]
[SourceTitle "playchess.com"]
[Source "ChessBase"]
[SourceQuality "1"]
[TimeControl "90+30"]

1. Nf3 {[%emt 0:00:00]} d5 {[%emt 0:00:00]} 2. g3 {[%emt 0:00:00]} Bg4 {[%emt 0:00:00]} 3. Bg2 {[%emt 0:00:00]} Nd7 {[%emt 0:00:00]} 4. h3 {[%emt 0:00:00]} Bxf3 {[%emt 0:00:00]} 5. Bxf3 {[%emt 0:00:00]} Ngf6 {[%emt 0:00:00]} 6. d3 {[%emt 0:00:00]} c6 {[%emt 0:00:00]} 7. O-O {[%emt 0:00:00]} e6 {[%emt 0:00:00]} 8. Bg2 {[%emt 0:00:00]} Be7 {[%emt 0:00:00]} 9. e4 {[%emt 0:00:00]} O-O {[%emt 0:00:00]} 10. Qe2 {[%emt 0:00:00]} dxe4 {[%emt 0:00:00]} 11. dxe4 {[%emt 0:00:00]} e5 {[%emt 0:00:00]} 12. a4 {[%emt 0:00:00]} Re8 {[%emt 0:00:00]} 13. Nd2 {[%emt 0:00:00]} Qc7 {[%emt 0:00:00]} 14. Rd1 {[%emt 0:00:00]} a5 {[%emt 0:00:00]} 15. h4 {[%emt 0:00:00]} Bb4 {[%emt 0:00:00]} 16. Nc4 {[%emt 0:00:00]} Nb6 {[%emt 0:00:00]} 17. c3 {[%emt 0:00:00]} Bc5 {[%emt 0:00:00]} 18. Nd2 {[%emt 0:00:00]} Nbd7 {[%emt 0:00:00]} 19. Bh3 {[%emt 0:00:00]} h6 {[%emt 0:00:00]} 20. Nb3 {[%emt 0:00:00]} Ba7 {[%emt 0:00:00]} 21. Bxd7 {[%emt 0:00:00]} Nxd7 {[%emt 0:00:00]} 22. Bxh6 {[%emt 0:00:00]} Nf6 {[%emt 0:00:00]} 23. Bg5 {[%emt 0:00:00]} Re6 {[%emt 0:00:00]} 24. Be3 {[%emt 0:00:00]} Bxe3 {[%emt 0:00:00]} 25. Qxe3 {[%emt 0:00:00]} Rd8 {[%emt 0:00:00]} 26. Rd2 {[%emt 0:00:00]} Red6 {[%emt 0:00:44]} 27. Rad1 {[%emt 0:00:00]} Rxd2 {[%emt 0:00:10]} 28. Rxd2 {[%emt 0:00:00]} Rxd2 {[%emt 0:00:06]} 29. Nxd2 {[%emt 0:00:00]} b5 {[%emt 0:00:24]} 30. Kg2 {[%emt 0:00:00]} bxa4 {[%emt 0:01:22]} 31. Nc4 {[%emt 0:00:00]} Qb8 {[%emt 0:02:02]} 32. Qd3 {[%emt 0:00:00]} Qb5 {[%emt 0:01:01]} 33. Kh3 {[%emt 0:00:00]} Qc5 {[%emt 0:01:44]} 34. Qe2 {[%emt 0:00:00]} g6 {[%emt 0:01:46]} 35. Na3 {[%emt 0:00:00]} Kg7 {[%emt 0:00:34]} 36. Kg2 {[%emt 0:00:00]} Qb6 {[%emt 0:01:29]} 37. Kf3 {[%emt 0:00:00]} Qb3 {[%emt 0:03:31]} 38. Qc2 {[%emt 0:00:00]} Nd7 {[%emt 0:00:13]} 39. Qd2 {[%emt 0:00:12]} Nb6 {[%emt 0:01:21]} 40. Qe2 {[%emt 0:01:39]} Kg8 {[%emt 0:00:50]} 41. Kg2 {[%emt 0:00:25]} Kg7 {[%emt 0:00:23]} 42. h5 {[%emt 0:02:06]} gxh5 {[%emt 0:00:07]} 43. Qxh5 {[%emt 0:00:13]} Qxb2 {[%emt 0:00:28]} 44. Qxe5+ {[%emt 0:00:06]} Kg8 {[%emt 0:00:13]} 45. Qg5+ {[%emt 0:00:37]} Kh7 {[%emt 0:01:28]} 46. Qc5 {[%emt 0:00:27]} Kg7 {[%emt 0:00:25]} 47. g4 {[%emt 0:00:43]} Qb3 {[%emt 0:01:26]} 48. f3 {[%emt 0:01:30]} Qb2+ {[%emt 0:01:15]} 49. Kg3 {[%emt 0:00:15]} Qc1 {[%emt 0:00:15]} 50. g5 {[%emt 0:01:49]} Nd7 {[%emt 0:01:28]} 51. Qd4+ {[%emt 0:00:21]} Kg8 {[%emt 0:00:06]} 52. Qxd7 {[%emt 0:05:27]} Qxa3 {[%emt 0:00:26]} 53. Qd8+ {[%emt 0:04:05]} Qf8 {[%emt 0:01:24]} 54. Qxa5 {[%emt 0:00:20]} Qd6+ {[%emt 0:00:55]} 55. e5 {[%emt 0:00:32]} Qd5 {[%emt 0:00:22]} 56. Qxa4 {[%emt 0:02:53]} Qxe5+ {[%emt 0:00:05]} 57. Kg4 {[%emt 0:00:35]} Qxc3 {[%emt 0:00:10]} 58. f4 {[%emt 0:00:26]} Qc1 {[%emt 0:01:36]} 59. Qd4 {[%emt 0:01:57]} c5 {[%emt 0:00:11]} 60. Qd8+ {[%emt 0:00:26]} Kg7 {[%emt 0:00:02]} 61. Qf6+ {[%emt 0:01:27]} Kg8 {[%emt 0:00:04]} 62. Qd8+ {[%emt 0:01:25]} Kg7 {[%emt 0:00:05]} 63. Qd5 {[%emt 0:00:26]} Qg1+ {[%emt 0:01:04]} 64. Kf5 {[%emt 0:00:12]} Qb1+ {[%emt 0:00:24]} 65. Ke5 {[%emt 0:00:45]} Qb2+ {[%emt 0:00:28]} 66. Kd6 {[%emt 0:01:19]} Qd4 {[%emt 0:00:32]} 67. f5 {[%emt 0:00:09]} Qf4+ {[%emt 0:01:46]} 68. Qe5+ {[%emt 0:00:08]} Qxe5+ {[%emt 0:00:05]} 69. Kxe5 {[%emt 0:00:03]} f6+ {[%emt 0:00:13]} 70. Ke6 {[%emt 0:01:42]} 1/2-1/2

[Event "50th Ciudad Sevilla 2024"]
[Site "Sevilla"]
[Date "2025.01.14"]
[Round "5.7"]
[White "Vignesh N R"]
[Black "Silva Lucena, Cristian"]
[Result "1-0"]
[Annotator "RC"]
[ECO "C42"]
[WhiteElo "2523"]
[BlackElo "2317"]
[PlyCount "121"]
[EventDate "2025.01.10"]
[EventType "swiss"]
[EventCountry "ESP"]
[SourceTitle "playchess.com"]
[Source "ChessBase"]
[SourceQuality "1"]
[TimeControl "90+30"]

1. e4 {[%emt 0:00:00]} e5 {[%emt 0:00:00]} 2. Nf3 {[%emt 0:00:00]} Nf6 {[%emt 0:00:00]} 3. Nxe5 {[%emt 0:00:00]} d6 {[%emt 0:00:00]} 4. Nf3 {[%emt 0:00:00]} Nxe4 {[%emt 0:00:00]} 5. Nc3 {[%emt 0:00:00]} Nxc3 {[%emt 0:00:00]} 6. dxc3 {[%emt 0:00:00]} Be7 {[%emt 0:00:00]} 7. Be3 {[%emt 0:00:00]} O-O {[%emt 0:00:00]} 8. Qd2 {[%emt 0:00:00]} Nd7 {[%emt 0:00:00]} 9. O-O-O {[%emt 0:00:00]} Nf6 {[%emt 0:00:00]} 10. h3 {[%emt 0:00:00]} c5 {[%emt 0:00:00]} 11. c4 {[%emt 0:00:00]} b5 {[%emt 0:00:00]} 12. cxb5 {[%emt 0:00:00]} a6 {[%emt 0:00:00]} 13. b6 {[%emt 0:00:00]} Qxb6 {[%emt 0:00:00]} 14. c4 {[%emt 0:00:00]} Rb8 {[%emt 0:00:00]} 15. Bd3 {[%emt 0:00:00]} d5 {[%emt 0:00:00]} 16. Bf4 {[%emt 0:00:00]} Rb7 {[%emt 0:00:00]} 17. Rhe1 {[%emt 0:00:00]} Rd8 {[%emt 0:00:00]} 18. Qc2 {[%emt 0:00:00]} Be6 {[%emt 0:00:00]} 19. Ng5 {[%emt 0:00:00]} dxc4 {[%emt 0:00:00]} 20. Bxh7+ {[%emt 0:00:00]} Kf8 {[%emt 0:00:00]} 21. Rxd8+ {[%emt 0:00:00]} Bxd8 {[%emt 0:00:00]} 22. Nxe6+ {[%emt 0:00:00]} fxe6 {[%emt 0:00:00]} 23. Be4 {[%emt 0:00:00]} Nd5 {[%emt 0:00:00]} 24. Bxd5 {[%emt 0:00:00]} exd5 {[%emt 0:00:00]} 25. Qf5+ {[%emt 0:00:00]} Rf7 {[%emt 0:00:00]} 26. Qh5 {[%emt 0:00:00]} Re7 {[%emt 0:00:00]} 27. Rxe7 {[%emt 0:00:00]} Bxe7 {[%emt 0:00:00]} 28. Qxd5 {[%emt 0:00:00]} Qa5 {[%emt 0:00:00]} 29. Qf5+ {[%emt 0:00:00]} Ke8 {[%emt 0:00:00]} 30. Qh5+ {[%emt 0:00:10]} Kf8 {[%emt 0:00:00]} 31. Qf3 {[%emt 0:06:32]} Kg8 {[%emt 0:00:00]} 32. Qe4 {[%emt 0:02:29]} Kf8 {[%emt 0:00:00]} 33. Be5 {[%emt 0:00:43]} Qxa2 {[%emt 0:00:00]} 34. Bxg7+ {[%emt 0:00:05]} Kf7 {[%emt 0:00:00]} 35. Bc3 {[%emt 0:00:17]} Qa1+ {[%emt 0:00:00]} 36. Kd2 {[%emt 0:01:54]} Qf1 {[%emt 0:00:00]} 37. Qf5+ {[%emt 0:00:19]} Ke8 {[%emt 0:00:00]} 38. g3 {[%emt 0:01:59]} Bg5+ {[%emt 0:00:00]} 39. f4 {[%emt 0:01:50]} Qf2+ {[%emt 0:00:00]} 40. Kc1 {[%emt 0:00:35]} Qf1+ {[%emt 0:00:00]} 41. Kc2 {[%emt 0:00:01]} Qe2+ {[%emt 0:00:00]} 42. Bd2 {[%emt 0:00:03]} Bf6 {[%emt 0:00:00]} 43. Qc8+ {[%emt 0:01:12]} Kf7 {[%emt 0:00:00]} 44. Qd7+ {[%emt 0:00:02]} Kf8 {[%emt 0:00:00]} 45. Qf5 {[%emt 0:00:12]} Ke8 {[%emt 0:00:00]} 46. g4 {[%emt 0:00:38]} Bd4 {[%emt 0:00:00]} 47. g5 {[%emt 0:01:09]} Qf3 {[%emt 0:00:00]} 48. Qe6+ {[%emt 0:00:14]} Kf8 {[%emt 0:00:00]} 49. Qxc4 {[%emt 0:00:05]} Qxh3 {[%emt 0:00:00]} 50. Qxa6 {[%emt 0:00:28]} Qf5+ {[%emt 0:00:00]} 51. Qd3 {[%emt 0:00:22]} Qd5 {[%emt 0:00:00]} 52. b3 {[%emt 0:00:33]} Qa8 {[%emt 0:00:00]} 53. Qf5+ {[%emt 0:01:07]} Kg8 {[%emt 0:00:00]} 54. Qe6+ {[%emt 0:00:06]} Kf8 {[%emt 0:00:00]} 55. g6 {[%emt 0:01:07]} Qa2+ {[%emt 0:00:00]} 56. Kd1 {[%emt 0:00:28]} Qa1+ {[%emt 0:00:00]} 57. Ke2 {[%emt 0:00:13]} Qa7 {[%emt 0:00:00]} 58. Kd3 {[%emt 0:02:38]} Qb7 {[%emt 0:00:00]} 59. Qf7+ {[%emt 0:00:53]} Qxf7 {[%emt 0:00:00]} 60. gxf7 {[%emt 0:00:01]} Kxf7 {[%emt 0:00:00]} 61. Be3 {[%emt 0:00:08]} 1-0

[Event "50th Ciudad Sevilla 2024"]
[Site "Sevilla"]
[Date "2025.01.14"]
[Round "5.8"]
[White "Ilinca, Felix-Antonio"]
[Black "Keleberda, Tymur"]
[Result "1-0"]
[Annotator "RC"]
[ECO "C11"]
[WhiteElo "2440"]
[BlackElo "2265"]
[PlyCount "119"]
[EventDate "2025.01.10"]
[EventType "swiss"]
[EventCountry "ESP"]
[SourceTitle "playchess.com"]
[Source "ChessBase"]
[SourceQuality "1"]
[TimeControl "90+30"]

1. e4 {[%emt 0:00:00]} e6 {[%emt 0:00:00]} 2. d4 {[%emt 0:00:00]} d5 {[%emt 0:00:00]} 3. Nc3 {[%emt 0:00:00]} a6 {[%emt 0:00:00]} 4. Nf3 {[%emt 0:00:00]} Nf6 {[%emt 0:00:00]} 5. e5 {[%emt 0:00:00]} Nfd7 {[%emt 0:00:00]} 6. Ne2 {[%emt 0:00:00]} c5 {[%emt 0:00:00]} 7. c3 {[%emt 0:00:00]} Nc6 {[%emt 0:00:00]} 8. g3 {[%emt 0:00:00]} Qa5 {[%emt 0:00:00]} 9. Bd2 {[%emt 0:00:00]} Qb6 {[%emt 0:00:00]} 10. Rb1 {[%emt 0:00:00]} cxd4 {[%emt 0:00:00]} 11. cxd4 {[%emt 0:00:00]} f6 {[%emt 0:00:00]} 12. exf6 {[%emt 0:00:00]} Nxf6 {[%emt 0:00:00]} 13. Bg2 {[%emt 0:00:00]} Be7 {[%emt 0:00:00]} 14. O-O {[%emt 0:00:00]} O-O {[%emt 0:00:00]} 15. Be3 {[%emt 0:00:00]} Ne4 {[%emt 0:00:00]} 16. Ne5 {[%emt 0:00:00]} Nd6 {[%emt 0:00:00]} 17. Nxc6 {[%emt 0:00:00]} bxc6 {[%emt 0:00:00]} 18. Bf4 {[%emt 0:00:00]} Nf5 {[%emt 0:00:00]} 19. Be5 {[%emt 0:00:00]} Bf6 {[%emt 0:00:00]} 20. Bxf6 {[%emt 0:00:00]} Rxf6 {[%emt 0:00:00]} 21. Qd2 {[%emt 0:00:00]} Bb7 {[%emt 0:00:00]} 22. Rbc1 {[%emt 0:00:00]} a5 {[%emt 0:00:00]} 23. Rfd1 {[%emt 0:00:00]} Nd6 {[%emt 0:00:00]} 24. b3 {[%emt 0:00:00]} a4 {[%emt 0:00:00]} 25. Qe3 {[%emt 0:00:00]} axb3 {[%emt 0:00:00]} 26. axb3 {[%emt 0:00:00]} Ra3 {[%emt 0:00:00]} 27. Qe5 {[%emt 0:00:00]} Qd8 {[%emt 0:00:00]} 28. Nf4 {[%emt 0:00:00]} Nf7 {[%emt 0:00:00]} 29. Qe3 {[%emt 0:00:00]} Qd6 {[%emt 0:00:00]} 30. Re1 {[%emt 0:00:00]} Bc8 {[%emt 0:00:00]} 31. Nxd5 {[%emt 0:00:00]} exd5 {[%emt 0:00:00]} 32. Rxc6 {[%emt 0:00:00]} Be6 {[%emt 0:02:14]} 33. Rxd6 {[%emt 0:00:00]} Nxd6 {[%emt 0:00:02]} 34. Qe5 {[%emt 0:00:00]} Ne4 {[%emt 0:00:49]} 35. Bxe4 {[%emt 0:00:00]} dxe4 {[%emt 0:00:02]} 36. Qb8+ {[%emt 0:00:00]} Kf7 {[%emt 0:00:28]} 37. Qb7+ {[%emt 0:00:00]} Kg6 {[%emt 0:00:29]} 38. Qxe4+ {[%emt 0:00:00]} Bf5 {[%emt 0:00:34]} 39. Qe8+ {[%emt 0:00:06]} Kh6 {[%emt 0:00:06]} 40. Qe3+ {[%emt 0:00:07]} Kg6 {[%emt 0:00:12]} 41. d5 {[%emt 0:00:19]} Raa6 {[%emt 0:01:37]} 42. f3 {[%emt 0:01:12]} h5 {[%emt 0:01:33]} 43. Rd1 {[%emt 0:02:09]} Rfd6 {[%emt 0:01:36]} 44. Kg2 {[%emt 0:00:48]} Kh7 {[%emt 0:01:17]} 45. Rd2 {[%emt 0:00:41]} Bg6 {[%emt 0:00:28]} 46. Qe5 {[%emt 0:00:27]} Rab6 {[%emt 0:00:44]} 47. b4 {[%emt 0:00:49]} Bf7 {[%emt 0:00:41]} 48. h3 {[%emt 0:00:20]} Kg8 {[%emt 0:01:27]} 49. g4 {[%emt 0:00:48]} hxg4 {[%emt 0:00:32]} 50. hxg4 {[%emt 0:00:08]} Rd7 {[%emt 0:00:04]} 51. Rd4 {[%emt 0:00:36]} Rbd6 {[%emt 0:01:28]} 52. Kg3 {[%emt 0:00:25]} Rxd5 {[%emt 0:00:28]} 53. Rxd5 {[%emt 0:02:39]} Rxd5 {[%emt 0:00:04]} 54. Qb8+ {[%emt 0:00:31]} Kh7 {[%emt 0:00:02]} 55. b5 {[%emt 0:00:26]} Rd3 {[%emt 0:00:51]} 56. b6 {[%emt 0:01:24]} Bd5 {[%emt 0:00:06]} 57. Qf4 {[%emt 0:00:07]} Rd1 {[%emt 0:01:11]} 58. Qf5+ {[%emt 0:00:18]} Kg8 {[%emt 0:00:18]} 59. Qc8+ {[%emt 0:00:07]} Kh7 {[%emt 0:00:10]} 60. Qc2+ {[%emt 0:00:06]} 1-0

[Event "50th Ciudad Sevilla 2024"]
[Site "Sevilla"]
[Date "2025.01.14"]
[Round "5.9"]
[White "Del Rio De Angelis, Salvador G."]
[Black "Zhukenov, Aituar"]
[Result "1-0"]
[Annotator "RC"]
[ECO "E94"]
[WhiteElo "2403"]
[BlackElo "2235"]
[PlyCount "69"]
[EventDate "2025.01.10"]
[EventType "swiss"]
[EventCountry "ESP"]
[SourceTitle "playchess.com"]
[Source "ChessBase"]
[SourceQuality "1"]
[TimeControl "90+30"]

1. c4 {[%emt 0:00:00]} Nf6 {[%emt 0:00:00]} 2. Nc3 {[%emt 0:00:00]} g6 {[%emt 0:00:00]} 3. e4 {[%emt 0:00:00]} d6 {[%emt 0:00:00]} 4. d4 {[%emt 0:00:00]} Bg7 {[%emt 0:00:00]} 5. Nf3 {[%emt 0:00:00]} O-O {[%emt 0:00:00]} 6. Be2 {[%emt 0:00:00]} e5 {[%emt 0:00:00]} 7. O-O {[%emt 0:00:00]} Bg4 {[%emt 0:00:00]} 8. d5 {[%emt 0:00:00]} a5 {[%emt 0:00:00]} 9. Bg5 {[%emt 0:00:00]} Na6 {[%emt 0:00:00]} 10. Nd2 {[%emt 0:00:00]} Bd7 {[%emt 0:00:00]} 11. a3 {[%emt 0:00:00]} h6 {[%emt 0:00:00]} 12. Be3 {[%emt 0:00:00]} Nh7 {[%emt 0:00:00]} 13. Rb1 {[%emt 0:00:00]} f5 {[%emt 0:00:00]} 14. exf5 {[%emt 0:00:00]} gxf5 {[%emt 0:00:00]} 15. f4 {[%emt 0:00:00]} Qe7 {[%emt 0:00:00]} 16. Nf3 {[%emt 0:00:00]} Rae8 {[%emt 0:00:00]} 17. Qd2 {[%emt 0:00:00]} exf4 {[%emt 0:00:00]} 18. Bxf4 {[%emt 0:00:00]} Nc5 {[%emt 0:00:00]} 19. Rbe1 {[%emt 0:00:00]} Ne4 {[%emt 0:00:00]} 20. Qc1 {[%emt 0:00:00]} Nxc3 {[%emt 0:00:00]} 21. bxc3 {[%emt 0:00:00]} Qf6 {[%emt 0:00:00]} 22. Nd4 {[%emt 0:00:00]} Ng5 {[%emt 0:00:00]} 23. Bxg5 {[%emt 0:00:00]} hxg5 {[%emt 0:00:00]} 24. Bd3 {[%emt 0:00:00]} f4 {[%emt 0:00:00]} 25. Qd1 {[%emt 0:00:00]} Re5 {[%emt 0:00:00]} 26. Qh5 {[%emt 0:00:00]} Rfe8 {[%emt 0:00:00]} 27. Ne6 {[%emt 0:00:00]} R8xe6 {[%emt 0:00:00]} 28. dxe6 {[%emt 0:00:00]} Qxe6 {[%emt 0:00:00]} 29. Rxe5 {[%emt 0:00:00]} Qxe5 {[%emt 0:00:00]} 30. Qh7+ {[%emt 0:00:00]} Kf8 {[%emt 0:00:00]} 31. h4 {[%emt 0:00:00]} Qe3+ {[%emt 0:02:02]} 32. Kh1 {[%emt 0:00:00]} gxh4 {[%emt 0:04:37]} 33. Qxh4 {[%emt 0:00:00]} Be5 {[%emt 0:01:32]} 34. Qd8+ {[%emt 0:00:00]} Be8 {[%emt 0:00:07]} 35. Bg6 {[%emt 0:00:00]} 1-0

[Event "50th Ciudad Sevilla 2024"]
[Site "Sevilla"]
[Date "2025.01.14"]
[Round "5.10"]
[White "Song, Yuxin"]
[Black "Youssoupov, Moissei"]
[Result "1-0"]
[Annotator "RC"]
[ECO "B01"]
[WhiteElo "2384"]
[BlackElo "2177"]
[PlyCount "113"]
[EventDate "2025.01.10"]
[EventType "swiss"]
[EventCountry "ESP"]
[SourceTitle "playchess.com"]
[Source "ChessBase"]
[SourceQuality "1"]
[TimeControl "90+30"]

1. e4 {[%emt 0:00:00]} d5 {[%emt 0:00:00]} 2. exd5 {[%emt 0:00:00]} Qxd5 {[%emt 0:00:00]} 3. Nc3 {[%emt 0:00:00]} Qa5 {[%emt 0:00:00]} 4. d4 {[%emt 0:00:00]} Nf6 {[%emt 0:00:00]} 5. Nf3 {[%emt 0:00:00]} Bf5 {[%emt 0:00:00]} 6. Bd2 {[%emt 0:00:00]} c6 {[%emt 0:00:00]} 7. Bc4 {[%emt 0:00:00]} Nbd7 {[%emt 0:00:00]} 8. O-O {[%emt 0:00:00]} Qc7 {[%emt 0:00:00]} 9. Nh4 {[%emt 0:00:00]} Bg6 {[%emt 0:00:00]} 10. Nxg6 {[%emt 0:00:00]} hxg6 {[%emt 0:00:00]} 11. h3 {[%emt 0:00:00]} Nb6 {[%emt 0:00:00]} 12. Bb3 {[%emt 0:00:00]} Rd8 {[%emt 0:00:00]} 13. Ne2 {[%emt 0:00:00]} e6 {[%emt 0:00:00]} 14. c4 {[%emt 0:00:00]} c5 {[%emt 0:00:00]} 15. Ba4+ {[%emt 0:00:00]} Nxa4 {[%emt 0:00:00]} 16. Qxa4+ {[%emt 0:00:00]} Qd7 {[%emt 0:00:00]} 17. Qxa7 {[%emt 0:00:00]} cxd4 {[%emt 0:00:00]} 18. Ba5 {[%emt 0:00:00]} Rc8 {[%emt 0:00:00]} 19. Qxd4 {[%emt 0:00:00]} Qxd4 {[%emt 0:00:00]} 20. Nxd4 {[%emt 0:00:00]} Rxc4 {[%emt 0:00:00]} 21. Rfd1 {[%emt 0:00:00]} Rh5 {[%emt 0:00:00]} 22. Nb3 {[%emt 0:00:00]} Nd5 {[%emt 0:00:00]} 23. Rac1 {[%emt 0:00:00]} Rxc1 {[%emt 0:00:00]} 24. Rxc1 {[%emt 0:00:00]} Bd6 {[%emt 0:00:00]} 25. Bd2 {[%emt 0:00:00]} b6 {[%emt 0:00:00]} 26. a4 {[%emt 0:00:00]} Rh4 {[%emt 0:00:00]} 27. a5 {[%emt 0:00:00]} bxa5 {[%emt 0:00:00]} 28. Nxa5 {[%emt 0:00:00]} Rd4 {[%emt 0:00:00]} 29. Nc4 {[%emt 0:00:00]} Be7 {[%emt 0:04:06]} 30. Kf1 {[%emt 0:00:00]} f6 {[%emt 0:07:13]} 31. Ke2 {[%emt 0:00:00]} e5 {[%emt 0:01:14]} 32. g3 {[%emt 0:00:00]} g5 {[%emt 0:02:07]} 33. b3 {[%emt 0:00:00]} e4 {[%emt 0:00:56]} 34. Ra1 {[%emt 0:00:00]} Rd3 {[%emt 0:00:58]} 35. Ra5 {[%emt 0:00:00]} Bb4 {[%emt 0:01:24]} 36. Rxd5 {[%emt 0:00:00]} Rxd5 {[%emt 0:00:34]} 37. Bxb4 {[%emt 0:00:00]} f5 {[%emt 0:01:25]} 38. Bd2 {[%emt 0:00:00]} Rd3 {[%emt 0:00:27]} 39. Bxg5 {[%emt 0:00:00]} Rxb3 {[%emt 0:00:24]} 40. h4 {[%emt 0:04:47]} Kf7 {[%emt 0:00:31]} 41. Ne5+ {[%emt 0:00:01]} Ke6 {[%emt 0:00:18]} 42. Ng6 {[%emt 0:00:01]} Kf7 {[%emt 0:00:22]} 43. h5 {[%emt 0:00:20]} Ra3 {[%emt 0:00:44]} 44. Be3 {[%emt 0:02:03]} Ra1 {[%emt 0:00:33]} 45. Bd4 {[%emt 0:01:10]} Ra3 {[%emt 0:00:23]} 46. Nh4 {[%emt 0:00:32]} f4 {[%emt 0:00:49]} 47. gxf4 {[%emt 0:00:38]} Rh3 {[%emt 0:00:19]} 48. Nf5 {[%emt 0:00:01]} Rxh5 {[%emt 0:00:08]} 49. Nxg7 {[%emt 0:00:14]} Rd5 {[%emt 0:00:40]} 50. Ke3 {[%emt 0:00:20]} Rb5 {[%emt 0:00:54]} 51. Kxe4 {[%emt 0:00:11]} Ra5 {[%emt 0:00:05]} 52. f5 {[%emt 0:00:23]} Rb5 {[%emt 0:00:11]} 53. Ne6 {[%emt 0:00:09]} Ra5 {[%emt 0:00:09]} 54. f4 {[%emt 0:00:20]} Rb5 {[%emt 0:00:03]} 55. Ng5+ {[%emt 0:00:07]} Kf8 {[%emt 0:00:12]} 56. f6 {[%emt 0:00:10]} Ra5 {[%emt 0:00:18]} 57. Bc5+ {[%emt 0:00:20]} 1-0

[Event "50th Ciudad Sevilla 2024"]
[Site "Sevilla"]
[Date "2025.01.14"]
[Round "5.11"]
[White "Bukal, Vladimir Jr."]
[Black "Aamodt, Peder Marcus"]
[Result "1/2-1/2"]
[Annotator "ChessBase"]
[ECO "D30"]
[WhiteElo "2356"]
[BlackElo "2082"]
[PlyCount "46"]
[EventDate "2025.01.10"]
[EventType "swiss"]
[EventCountry "ESP"]
[SourceTitle "playchess.com"]
[Source "ChessBase"]
[SourceQuality "1"]
[TimeControl "90+30"]

1. d4 {[%emt 0:00:00]} d5 {[%emt 0:00:00]} 2. c4 {[%emt 0:00:00]} e6 {[%emt 0:00:00]} 3. Nf3 {[%emt 0:00:00]} c6 {[%emt 0:00:00]} 4. g3 {[%emt 0:00:00]} dxc4 {[%emt 0:00:00]} 5. Bg2 {[%emt 0:00:00]} b5 {[%emt 0:00:00]} 6. Ne5 {[%emt 0:00:00]} Bb7 {[%emt 0:00:00]} 7. a4 {[%emt 0:00:00]} a6 {[%emt 0:00:00]} 8. O-O {[%emt 0:00:00]} Nf6 {[%emt 0:00:00]} 9. Nc3 {[%emt 0:00:00]} Nd5 {[%emt 0:00:00]} 10. Ne4 {[%emt 0:00:00]} Be7 {[%emt 0:00:00]} 11. h4 {[%emt 0:00:00]} Nd7 {[%emt 0:00:00]} 12. b3 {[%emt 0:00:00]} cxb3 {[%emt 0:00:00]} 13. Qxb3 {[%emt 0:00:00]} O-O {[%emt 0:00:00]} 14. Rd1 {[%emt 0:00:00]} Nxe5 {[%emt 0:00:00]} 15. dxe5 {[%emt 0:00:00]} Qc7 {[%emt 0:00:00]} 16. Nd6 {[%emt 0:00:00]} Bxd6 {[%emt 0:00:00]} 17. exd6 {[%emt 0:00:00]} Qxd6 {[%emt 0:00:00]} 18. Ba3 {[%emt 0:00:00]} b4 {[%emt 0:00:00]} 19. e4 {[%emt 0:00:00]} bxa3 {[%emt 0:00:00]} 20. exd5 {[%emt 0:00:00]} cxd5 {[%emt 0:00:00]} 21. Qxb7 {[%emt 0:00:00]} Rfb8 {[%emt 0:00:00]} 22. Bxd5 {[%emt 0:00:00]} exd5 {[%emt 0:00:00]} 23. Qxd5 {[%emt 0:00:00]} Qxd5 {[%emt 0:00:46]} 1/2-1/2

[Event "50th Ciudad Sevilla 2024"]
[Site "Sevilla"]
[Date "2025.01.14"]
[Round "5.12"]
[White "Marin, Mihail"]
[Black "Rodriguez Garcia, Manuel Francisco"]
[Result "1-0"]
[Annotator "RC"]
[ECO "A04"]
[WhiteElo "2431"]
[BlackElo "2136"]
[PlyCount "51"]
[EventDate "2025.01.10"]
[EventType "swiss"]
[EventCountry "ESP"]
[SourceTitle "playchess.com"]
[Source "ChessBase"]
[SourceQuality "1"]
[TimeControl "90+30"]

1. Nf3 {[%emt 0:00:00]} c5 {[%emt 0:00:00]} 2. b3 {[%emt 0:00:00]} Nf6 {[%emt 0:00:00]} 3. Bb2 {[%emt 0:00:00]} Nc6 {[%emt 0:00:00]} 4. e3 {[%emt 0:00:00]} e6 {[%emt 0:00:00]} 5. d4 {[%emt 0:00:00]} Be7 {[%emt 0:00:00]} 6. Bd3 {[%emt 0:00:00]} d6 {[%emt 0:00:00]} 7. O-O {[%emt 0:00:00]} Qc7 {[%emt 0:00:00]} 8. c4 {[%emt 0:00:00]} b6 {[%emt 0:00:00]} 9. Nc3 {[%emt 0:00:00]} Bb7 {[%emt 0:00:00]} 10. d5 {[%emt 0:00:00]} Ne5 {[%emt 0:00:00]} 11. Nxe5 {[%emt 0:00:00]} dxe5 {[%emt 0:00:00]} 12. Nb5 {[%emt 0:00:00]} Qb8 {[%emt 0:00:00]} 13. f4 {[%emt 0:00:00]} exf4 {[%emt 0:00:00]} 14. exf4 {[%emt 0:00:00]} Qc8 {[%emt 0:00:00]} 15. Bxf6 {[%emt 0:00:00]} gxf6 {[%emt 0:00:00]} 16. dxe6 {[%emt 0:00:00]} Rg8 {[%emt 0:00:00]} 17. exf7+ {[%emt 0:00:00]} Kxf7 {[%emt 0:00:00]} 18. Qh5+ {[%emt 0:00:00]} Kf8 {[%emt 0:00:00]} 19. Qh6+ {[%emt 0:00:00]} Rg7 {[%emt 0:00:00]} 20. Rae1 {[%emt 0:00:00]} Qg4 {[%emt 0:04:03]} 21. g3 {[%emt 0:00:00]} Rd8 {[%emt 0:03:37]} 22. Nc7 {[%emt 0:00:00]} Rd6 {[%emt 0:01:54]} 23. Bf5 {[%emt 0:00:00]} Qxf5 {[%emt 0:00:16]} 24. Rxe7 {[%emt 0:00:00]} Kxe7 {[%emt 0:00:28]} 25. Qxg7+ {[%emt 0:00:00]} Kd8 {[%emt 0:00:19]} 26. Nb5 {[%emt 0:00:00]} 1-0